[Event "Titled Tuesday Blitz February 21 Late 2023"]
[White "Kovacs, Klara"]
[Black "Manelyuk, Daniil"]
[WhiteFideId "733210"]
[BlackFideId "44173920"]
[WhiteElo "2121"]
[BlackElo "2302"]
[Result "0-1"]
[Round "02"]
[TimeControl "180+2"]
[Date "2023.02.21"]
[WhiteClock "0:00:01"]
[BlackClock "0:00:16"]

1. d4 {[%clk 0:02:39]}  Nf6 {[%clk 0:02:58]} 2. Nf3 {[%clk 0:02:39]}  c5 {[%clk 0:02:58]} 3. d5 {[%clk 0:02:38]}  b5 {[%clk 0:02:57]} 4. e4 {[%clk 0:02:34]}  Nxe4 {[%clk 0:02:57]} 5. Bxb5 {[%clk 0:02:33]}  Nd6 {[%clk 0:02:51]} 6. Be2 {[%clk 0:02:29]}  g6 {[%clk 0:02:51]} 7. c4 {[%clk 0:02:26]}  Bg7 {[%clk 0:02:51]} 8. O-O {[%clk 0:02:26]}  O-O {[%clk 0:02:51]} 9. Nc3 {[%clk 0:02:08]}  Nf5 {[%clk 0:02:47]} 10. Be3 {[%clk 0:02:01]}  d6 {[%clk 0:02:45]} 11. h3 {[%clk 0:01:56]}  Nd7 {[%clk 0:02:45]} 12. g4 {[%clk 0:01:43]}  Nxe3 {[%clk 0:02:44]} 13. fxe3 {[%clk 0:01:43]}  f5 {[%clk 0:02:44]} 14. g5 {[%clk 0:01:43]}  Ne5 {[%clk 0:02:41]} 15. Kh2 {[%clk 0:01:38]}  f4 {[%clk 0:02:38]} 16. e4 {[%clk 0:01:34]}  Qd7 {[%clk 0:02:31]} 17. Ng1 {[%clk 0:01:30]}  f3 {[%clk 0:02:23]} 18. Bxf3 {[%clk 0:01:27]}  Nxc4 {[%clk 0:02:10]} 19. Bg4 {[%clk 0:01:17]}  Qd8 {[%clk 0:01:44]} 20. Rxf8+ {[%clk 0:01:15]}  Qxf8 {[%clk 0:01:45]} 21. Bxc8 {[%clk 0:01:12]}  Qf4+ {[%clk 0:01:34]} 22. Kh1 {[%clk 0:01:11]}  Rxc8 {[%clk 0:01:32]} 23. Qe2 {[%clk 0:01:10]}  Nd2 {[%clk 0:01:24]} 24. Re1 {[%clk 0:00:57]}  Rb8 {[%clk 0:01:12]} 25. Nd1 {[%clk 0:00:42]}  Rb4 {[%clk 0:01:09]} 26. Qa6 {[%clk 0:00:32]}  Nxe4 {[%clk 0:01:00]} 27. Qc8+ {[%clk 0:00:25]}  Bf8 {[%clk 0:00:59]} 28. Qe6+ {[%clk 0:00:24]}  Kh8 {[%clk 0:00:59]} 29. a3 {[%clk 0:00:15]}  Rd4 {[%clk 0:00:58]} 30. Nc3 {[%clk 0:00:10]}  Rd2 {[%clk 0:00:48]} 31. Nce2 {[%clk 0:00:07]}  Rxe2 {[%clk 0:00:33]} 32. Rxe2 {[%clk 0:00:08]}  Ng3+ {[%clk 0:00:30]} 33. Kg2 {[%clk 0:00:07]}  Nxe2 {[%clk 0:00:24]} 34. Nxe2 {[%clk 0:00:08]}  Qxg5+ {[%clk 0:00:24]} 35. Ng3 {[%clk 0:00:08]}  h5 {[%clk 0:00:21]} 36. Qf7 {[%clk 0:00:07]}  Qf6 {[%clk 0:00:19]} 37. Qe8 {[%clk 0:00:07]}  Kg7 {[%clk 0:00:17]} 38. b4 {[%clk 0:00:05]}  h4 {[%clk 0:00:16]} 39. Ne4 {[%clk 0:00:04]}  Qe5 {[%clk 0:00:16]} 40. Nf2 {[%clk 0:00:04]}  Qxd5+ {[%clk 0:00:17]} 41. Kf1 {[%clk 0:00:04]}  cxb4 {[%clk 0:00:17]} 42. axb4 {[%clk 0:00:04]}  Qc4+ {[%clk 0:00:17]} 43. Kg2 {[%clk 0:00:04]}  Qxb4 {[%clk 0:00:18]} 44. Qd7 {[%clk 0:00:03]}  Qd4 {[%clk 0:00:17]} 45. Qe6 {[%clk 0:00:02]}  Qe5 {[%clk 0:00:17]} 46. Qc8 {[%clk 0:00:02]}  Qg3+ {[%clk 0:00:17]} 47. Kf1 {[%clk 0:00:01]}  a5 {[%clk 0:00:17]} 48. Qc4 {[%clk 0:00:01]}  Qe5 {[%clk 0:00:16]} 0-1


[Site "https://www.chess.com"]

[Event "Titled Tuesday Blitz February 21 Late 2023"]
[White "Djokic, Mihailo"]
[Black "Jorajuria Mendoza, Algol"]
[WhiteFideId "976440"]
[BlackFideId "5128897"]
[WhiteElo "2192"]
[BlackElo "2069"]
[Result "1-0"]
[Round "02"]
[TimeControl "180+2"]
[Date "2023.02.21"]
[WhiteClock "0:01:30"]
[BlackClock "0:00:01"]

1. c4 {[%clk 0:03:00]}  e5 {[%clk 0:02:56]} 2. Nc3 {[%clk 0:03:00]}  Nc6 {[%clk 0:02:53]} 3. g3 {[%clk 0:03:00]}  Bc5 {[%clk 0:02:48]} 4. Bg2 {[%clk 0:02:59]}  d6 {[%clk 0:02:46]} 5. d3 {[%clk 0:02:59]}  Nge7 {[%clk 0:02:21]} 6. Nf3 {[%clk 0:02:55]}  h5 {[%clk 0:01:46]} 7. a3 {[%clk 0:02:51]}  a5 {[%clk 0:01:43]} 8. Rb1 {[%clk 0:02:51]}  Bg4 {[%clk 0:01:31]} 9. h3 {[%clk 0:02:48]}  Be6 {[%clk 0:01:31]} 10. Ng5 {[%clk 0:02:48]}  Bf5 {[%clk 0:01:31]} 11. Nd5 {[%clk 0:02:42]}  h4 {[%clk 0:01:22]} 12. g4 {[%clk 0:02:39]}  Bd7 {[%clk 0:01:16]} 13. b4 {[%clk 0:02:40]}  axb4 {[%clk 0:01:12]} 14. axb4 {[%clk 0:02:39]}  Nxd5 {[%clk 0:01:10]} 15. Bxd5 {[%clk 0:02:39]}  Bxb4+ {[%clk 0:01:03]} 16. Rxb4 {[%clk 0:02:30]}  Nxb4 {[%clk 0:01:04]} 17. Nxf7 {[%clk 0:02:30]}  Qe7 {[%clk 0:00:58]} 18. Nxh8 {[%clk 0:02:30]}  Nxd5 {[%clk 0:00:42]} 19. cxd5 {[%clk 0:02:29]}  O-O-O {[%clk 0:00:42]} 20. Ng6 {[%clk 0:02:26]}  Qf6 {[%clk 0:00:42]} 21. Nxe5 {[%clk 0:02:03]}  Qxe5 {[%clk 0:00:41]} 22. e4 {[%clk 0:01:59]}  Rf8 {[%clk 0:00:19]} 23. Be3 {[%clk 0:01:56]}  Qc3+ {[%clk 0:00:16]} 24. Kf1 {[%clk 0:01:56]}  Bb5 {[%clk 0:00:16]} 25. Ke2 {[%clk 0:01:50]}  Qf6 {[%clk 0:00:09]} 26. f4 {[%clk 0:01:50]}  g5 {[%clk 0:00:08]} 27. Rf1 {[%clk 0:01:49]}  gxf4 {[%clk 0:00:06]} 28. Rxf4 {[%clk 0:01:50]}  Qg7 {[%clk 0:00:06]} 29. Qb3 {[%clk 0:01:44]}  Rxf4 {[%clk 0:00:06]} 30. Bxf4 {[%clk 0:01:45]}  Ba6 {[%clk 0:00:05]} 31. Qa4 {[%clk 0:01:45]}  Qb2+ {[%clk 0:00:04]} 32. Bd2 {[%clk 0:01:44]}  Kd8 {[%clk 0:00:03]} 33. Ke3 {[%clk 0:01:37]}  Ke7 {[%clk 0:00:01]} 34. Qd4 {[%clk 0:01:37]}  Qxd4+ {[%clk 0:00:01]} 35. Kxd4 {[%clk 0:01:38]}  Kf6 {[%clk 0:00:02]} 36. Ke3 {[%clk 0:01:34]}  Bb5 {[%clk 0:00:02]} 37. Bc3+ {[%clk 0:01:33]}  Kg6 {[%clk 0:00:02]} 38. Ba5 {[%clk 0:01:31]}  c6 {[%clk 0:00:02]} 39. Bc7 {[%clk 0:01:29]}  cxd5 {[%clk 0:00:01]} 40. exd5 {[%clk 0:01:30]} 1-0


[Site "https://www.chess.com"]

[Event "Titled Tuesday Blitz February 21 Late 2023"]
[White "Rios Escobar, Adan"]
[Black "Cori T., Deysi"]
[WhiteFideId "3403645"]
[BlackFideId "3801934"]
[WhiteElo "2234"]
[BlackElo "2362"]
[Result "1-0"]
[Round "02"]
[TimeControl "180+2"]
[Date "2023.02.21"]
[WhiteClock "0:00:18"]
[BlackClock "0:01:56"]

1. d4 {[%clk 0:02:54]}  e6 {[%clk 0:02:58]} 2. c4 {[%clk 0:02:54]}  Nf6 {[%clk 0:02:58]} 3. g3 {[%clk 0:02:53]}  Bb4+ {[%clk 0:02:57]} 4. Nd2 {[%clk 0:02:53]}  Qe7 {[%clk 0:02:57]} 5. Bg2 {[%clk 0:02:53]}  O-O {[%clk 0:02:58]} 6. Nf3 {[%clk 0:02:54]}  Nc6 {[%clk 0:02:58]} 7. O-O {[%clk 0:02:54]}  Bxd2 {[%clk 0:02:56]} 8. Bxd2 {[%clk 0:02:55]}  d6 {[%clk 0:02:56]} 9. Qc2 {[%clk 0:02:54]}  h6 {[%clk 0:02:55]} 10. b4 {[%clk 0:02:55]}  e5 {[%clk 0:02:55]} 11. d5 {[%clk 0:02:53]}  Nd8 {[%clk 0:02:54]} 12. e4 {[%clk 0:02:50]}  b6 {[%clk 0:02:45]} 13. Rfc1 {[%clk 0:02:48]}  Nd7 {[%clk 0:02:45]} 14. Be3 {[%clk 0:02:46]}  a5 {[%clk 0:02:45]} 15. a3 {[%clk 0:02:46]}  f5 {[%clk 0:02:44]} 16. exf5 {[%clk 0:02:43]}  Nf6 {[%clk 0:02:44]} 17. Nh4 {[%clk 0:02:42]}  Qf7 {[%clk 0:02:43]} 18. c5 {[%clk 0:02:29]}  Ng4 {[%clk 0:02:39]} 19. cxb6 {[%clk 0:02:24]}  Nxe3 {[%clk 0:02:39]} 20. fxe3 {[%clk 0:02:14]}  cxb6 {[%clk 0:02:39]} 21. e4 {[%clk 0:02:07]}  b5 {[%clk 0:02:39]} 22. Ng6 {[%clk 0:02:00]}  Re8 {[%clk 0:02:38]} 23. Qc7 {[%clk 0:01:59]}  axb4 {[%clk 0:02:31]} 24. Qxf7+ {[%clk 0:01:57]}  Nxf7 {[%clk 0:02:31]} 25. axb4 {[%clk 0:01:56]}  Rxa1 {[%clk 0:02:26]} 26. Rxa1 {[%clk 0:01:57]}  Ng5 {[%clk 0:02:26]} 27. h4 {[%clk 0:01:52]}  Nh7 {[%clk 0:02:26]} 28. Ra8 {[%clk 0:01:45]}  Bd7 {[%clk 0:02:19]} 29. Rxe8+ {[%clk 0:01:29]}  Bxe8 {[%clk 0:02:20]} 30. Ne7+ {[%clk 0:01:30]}  Kf8 {[%clk 0:02:20]} 31. Nc8 {[%clk 0:01:31]}  Nf6 {[%clk 0:02:19]} 32. Nxd6 {[%clk 0:01:30]}  Bd7 {[%clk 0:02:19]} 33. Kf2 {[%clk 0:01:00]}  Ke7 {[%clk 0:02:15]} 34. Nb7 {[%clk 0:01:01]}  Be8 {[%clk 0:02:13]} 35. Ke3 {[%clk 0:00:57]}  Ng4+ {[%clk 0:02:12]} 36. Kd3 {[%clk 0:00:54]}  Nf2+ {[%clk 0:02:11]} 37. Ke2 {[%clk 0:00:53]}  Ng4 {[%clk 0:02:11]} 38. Kf3 {[%clk 0:00:54]}  Nh2+ {[%clk 0:02:10]} 39. Ke2 {[%clk 0:00:48]}  Bh5+ {[%clk 0:02:09]} 40. Kd2 {[%clk 0:00:41]}  Bf3 {[%clk 0:02:08]} 41. Bxf3 {[%clk 0:00:34]}  Nxf3+ {[%clk 0:02:09]} 42. Ke3 {[%clk 0:00:35]}  Nd4 {[%clk 0:02:06]} 43. Kd3 {[%clk 0:00:25]}  h5 {[%clk 0:02:05]} 44. Na5 {[%clk 0:00:20]}  Kd6 {[%clk 0:02:03]} 45. Nb7+ {[%clk 0:00:19]}  Ke7 {[%clk 0:02:02]} 46. Nc5 {[%clk 0:00:19]}  Nf3 {[%clk 0:01:59]} 47. Ne6 {[%clk 0:00:17]}  Kf6 {[%clk 0:01:59]} 48. d6 {[%clk 0:00:14]}  Nd4 {[%clk 0:01:53]} 49. Nxd4 {[%clk 0:00:13]}  exd4 {[%clk 0:01:54]} 50. Kxd4 {[%clk 0:00:13]}  Kf7 {[%clk 0:01:54]} 51. Kd5 {[%clk 0:00:14]}  Ke8 {[%clk 0:01:54]} 52. e5 {[%clk 0:00:14]}  Kd7 {[%clk 0:01:55]} 53. e6+ {[%clk 0:00:15]}  Kc8 {[%clk 0:01:55]} 54. Kc6 {[%clk 0:00:15]}  Kd8 {[%clk 0:01:56]} 55. Kxb5 {[%clk 0:00:16]}  Ke8 {[%clk 0:01:56]} 56. Kc6 {[%clk 0:00:16]}  Kd8 {[%clk 0:01:56]} 57. b5 {[%clk 0:00:17]}  Ke8 {[%clk 0:01:57]} 58. b6 {[%clk 0:00:17]}  Kd8 {[%clk 0:01:56]} 59. b7 {[%clk 0:00:18]} 1-0


[Site "https://www.chess.com"]

[Event "Titled Tuesday Blitz February 21 Late 2023"]
[White "Karwowski, Kacper"]
[Black "Cepo, Toni"]
[WhiteFideId "1126032"]
[BlackFideId "4675916"]
[WhiteElo "2164"]
[BlackElo "2145"]
[Result "1-0"]
[Round "02"]
[TimeControl "180+2"]
[Date "2023.02.21"]
[WhiteClock "0:00:34"]
[BlackClock "0:01:35"]

1. e4 {[%clk 0:03:00]}  e5 {[%clk 0:02:57]} 2. d4 {[%clk 0:02:57]}  exd4 {[%clk 0:02:57]} 3. Nf3 {[%clk 0:02:57]}  Nf6 {[%clk 0:02:56]} 4. e5 {[%clk 0:02:43]}  Ne4 {[%clk 0:02:53]} 5. Qxd4 {[%clk 0:02:39]}  d5 {[%clk 0:02:52]} 6. exd6 {[%clk 0:02:39]}  Nxd6 {[%clk 0:02:51]} 7. Bd3 {[%clk 0:02:34]}  Nc6 {[%clk 0:02:49]} 8. Qf4 {[%clk 0:02:25]}  Be7 {[%clk 0:02:22]} 9. O-O {[%clk 0:02:24]}  O-O {[%clk 0:02:11]} 10. Nc3 {[%clk 0:02:06]}  Be6 {[%clk 0:02:07]} 11. Rd1 {[%clk 0:01:57]}  Qc8 {[%clk 0:02:04]} 12. Qg3 {[%clk 0:01:51]}  Bf6 {[%clk 0:02:02]} 13. Bg5 {[%clk 0:01:34]}  Bxg5 {[%clk 0:01:52]} 14. Nxg5 {[%clk 0:01:32]}  g6 {[%clk 0:01:50]} 15. Qh4 {[%clk 0:01:25]}  h5 {[%clk 0:01:49]} 16. Re1 {[%clk 0:01:11]}  Re8 {[%clk 0:01:47]} 17. Nce4 {[%clk 0:00:56]}  Nxe4 {[%clk 0:01:46]} 18. Bxe4 {[%clk 0:00:57]}  Bf5 {[%clk 0:01:43]} 19. c3 {[%clk 0:00:35]}  Bxe4 {[%clk 0:01:41]} 20. Nxe4 {[%clk 0:00:36]}  Kh7 {[%clk 0:01:35]} 21. Nf6+ {[%clk 0:00:34]} 1-0


[Site "https://www.chess.com"]

[Event "Titled Tuesday Blitz February 21 Late 2023"]
[White "Bernat, David"]
[Black "Przybylski, Wojciech"]
[WhiteFideId "2099225"]
[BlackFideId "1117599"]
[WhiteElo "1862"]
[BlackElo "2321"]
[Result "0-1"]
[Round "02"]
[TimeControl "180+2"]
[Date "2023.02.21"]
[WhiteClock "0:00:12"]
[BlackClock "0:00:09"]

1. c4 {[%clk 0:02:59]}  e5 {[%clk 0:02:57]} 2. Nc3 {[%clk 0:02:59]}  Nf6 {[%clk 0:02:57]} 3. g3 {[%clk 0:03:00]}  Bb4 {[%clk 0:02:56]} 4. e4 {[%clk 0:03:00]}  h5 {[%clk 0:02:54]} 5. h3 {[%clk 0:02:59]}  h4 {[%clk 0:02:51]} 6. g4 {[%clk 0:02:59]}  Nc6 {[%clk 0:02:50]} 7. Bg2 {[%clk 0:03:00]}  Nd4 {[%clk 0:02:47]} 8. Nge2 {[%clk 0:02:59]}  g5 {[%clk 0:02:43]} 9. d3 {[%clk 0:02:59]}  Nxe2 {[%clk 0:02:30]} 10. Qxe2 {[%clk 0:02:55]}  Bxc3+ {[%clk 0:02:30]} 11. bxc3 {[%clk 0:01:54]}  Nh7 {[%clk 0:02:29]} 12. O-O {[%clk 0:01:52]}  d6 {[%clk 0:02:26]} 13. c5 {[%clk 0:01:51]}  Be6 {[%clk 0:02:13]} 14. cxd6 {[%clk 0:01:50]}  cxd6 {[%clk 0:02:10]} 15. c4 {[%clk 0:01:51]}  Nf8 {[%clk 0:02:09]} 16. Rb1 {[%clk 0:01:49]}  b6 {[%clk 0:02:07]} 17. Be3 {[%clk 0:01:42]}  Ng6 {[%clk 0:02:05]} 18. d4 {[%clk 0:01:41]}  O-O {[%clk 0:02:04]} 19. Rfc1 {[%clk 0:01:39]}  Rc8 {[%clk 0:02:01]} 20. d5 {[%clk 0:01:39]}  Bd7 {[%clk 0:01:59]} 21. Qd2 {[%clk 0:01:39]}  Nf4 {[%clk 0:01:49]} 22. Bxf4 {[%clk 0:01:39]}  gxf4 {[%clk 0:01:48]} 23. Qb4 {[%clk 0:01:40]}  Qf6 {[%clk 0:01:45]} 24. Bf3 {[%clk 0:01:38]}  Rc5 {[%clk 0:01:42]} 25. Bd1 {[%clk 0:01:34]}  Ra5 {[%clk 0:01:35]} 26. Rb3 {[%clk 0:01:11]}  Rc8 {[%clk 0:01:30]} 27. Ra3 {[%clk 0:01:11]}  Rcc5 {[%clk 0:01:29]} 28. Rxa5 {[%clk 0:01:10]}  Rxa5 {[%clk 0:01:28]} 29. Rc3 {[%clk 0:01:09]}  Rc5 {[%clk 0:01:11]} 30. Ra3 {[%clk 0:01:09]}  Rc7 {[%clk 0:01:09]} 31. Ba4 {[%clk 0:01:09]}  Bxa4 {[%clk 0:00:51]} 32. Qxa4 {[%clk 0:01:08]}  f3 {[%clk 0:00:50]} 33. Qe8+ {[%clk 0:01:08]}  Kg7 {[%clk 0:00:49]} 34. Rc3 {[%clk 0:00:57]}  Rc5 {[%clk 0:00:32]} 35. Qd7 {[%clk 0:00:52]}  Qf4 {[%clk 0:00:21]} 36. Qxd6 {[%clk 0:00:38]}  Qxe4 {[%clk 0:00:12]} 37. Re3 {[%clk 0:00:37]}  Qf4 {[%clk 0:00:07]} 38. Qxe5+ {[%clk 0:00:29]}  Qxe5 {[%clk 0:00:07]} 39. Rxe5 {[%clk 0:00:30]}  Rxc4 {[%clk 0:00:08]} 40. Rg5+ {[%clk 0:00:25]}  Kf8 {[%clk 0:00:07]} 41. Rf5 {[%clk 0:00:25]}  Rc1+ {[%clk 0:00:07]} 42. Kh2 {[%clk 0:00:25]}  Rd1 {[%clk 0:00:07]} 43. Rxf3 {[%clk 0:00:24]}  Rxd5 {[%clk 0:00:07]} 44. Rf6 {[%clk 0:00:19]}  Rd2 {[%clk 0:00:07]} 45. Kg2 {[%clk 0:00:20]}  Rxa2 {[%clk 0:00:07]} 46. Rh6 {[%clk 0:00:21]}  b5 {[%clk 0:00:07]} 47. Rxh4 {[%clk 0:00:20]}  a5 {[%clk 0:00:07]} 48. Rh5 {[%clk 0:00:20]}  b4 {[%clk 0:00:08]} 49. Rb5 {[%clk 0:00:20]}  Ra3 {[%clk 0:00:08]} 50. h4 {[%clk 0:00:20]}  b3 {[%clk 0:00:08]} 51. h5 {[%clk 0:00:20]}  a4 {[%clk 0:00:09]} 52. h6 {[%clk 0:00:21]}  Kg8 {[%clk 0:00:09]} 53. g5 {[%clk 0:00:21]}  Ra2 {[%clk 0:00:09]} 54. Kg3 {[%clk 0:00:21]}  b2 {[%clk 0:00:09]} 55. f4 {[%clk 0:00:21]}  a3 {[%clk 0:00:10]} 56. f5 {[%clk 0:00:21]}  Ra1 {[%clk 0:00:09]} 57. g6 {[%clk 0:00:16]}  fxg6 {[%clk 0:00:09]} 58. fxg6 {[%clk 0:00:12]}  Rg1+ {[%clk 0:00:09]} 59. Kf2 {[%clk 0:00:12]}  Rxg6 {[%clk 0:00:09]} 0-1


[Site "https://www.chess.com"]

[Event "Titled Tuesday Blitz February 21 Late 2023"]
[White "Pino Perez, Lazaro"]
[Black "Petrovic, Aleksa"]
[WhiteFideId "3517055"]
[BlackFideId "967629"]
[WhiteElo "2142"]
[BlackElo "2332"]
[Result "1-0"]
[Round "02"]
[TimeControl "180+2"]
[Date "2023.02.21"]
[WhiteClock "0:00:10"]
[BlackClock "0:00:12"]

1. d4 {[%clk 0:03:00]}  e6 {[%clk 0:02:59]} 2. Bf4 {[%clk 0:02:57]}  f5 {[%clk 0:02:57]} 3. e3 {[%clk 0:02:52]}  Nf6 {[%clk 0:02:57]} 4. Nf3 {[%clk 0:02:50]}  Be7 {[%clk 0:02:57]} 5. h3 {[%clk 0:02:43]}  O-O {[%clk 0:02:56]} 6. Bd3 {[%clk 0:02:37]}  d6 {[%clk 0:02:56]} 7. Nbd2 {[%clk 0:02:29]}  Nc6 {[%clk 0:02:54]} 8. c3 {[%clk 0:02:11]}  Qe8 {[%clk 0:02:54]} 9. g4 {[%clk 0:02:01]}  Bd8 {[%clk 0:02:49]} 10. Bg5 {[%clk 0:01:40]}  e5 {[%clk 0:02:21]} 11. dxe5 {[%clk 0:01:21]}  dxe5 {[%clk 0:02:19]} 12. Bxf6 {[%clk 0:01:21]}  Rxf6 {[%clk 0:02:12]} 13. gxf5 {[%clk 0:01:19]}  Bxf5 {[%clk 0:02:09]} 14. Bxf5 {[%clk 0:01:18]}  Rxf5 {[%clk 0:02:10]} 15. Ne4 {[%clk 0:01:18]}  Qf7 {[%clk 0:02:05]} 16. Nfd2 {[%clk 0:01:17]}  Bh4 {[%clk 0:01:57]} 17. Rf1 {[%clk 0:01:17]}  Kh8 {[%clk 0:01:47]} 18. Qg4 {[%clk 0:01:00]}  g5 {[%clk 0:01:29]} 19. O-O-O {[%clk 0:00:55]}  h5 {[%clk 0:01:28]} 20. Qe2 {[%clk 0:00:46]}  Kh7 {[%clk 0:01:24]} 21. Ng3 {[%clk 0:00:37]}  Bxg3 {[%clk 0:01:21]} 22. fxg3 {[%clk 0:00:38]}  Kh6 {[%clk 0:01:03]} 23. g4 {[%clk 0:00:33]}  Rxf1 {[%clk 0:00:57]} 24. Rxf1 {[%clk 0:00:34]}  Qxa2 {[%clk 0:00:56]} 25. Rf6+ {[%clk 0:00:16]}  Kg7 {[%clk 0:00:55]} 26. Qf3 {[%clk 0:00:16]}  Ne7 {[%clk 0:00:20]} 27. gxh5 {[%clk 0:00:16]}  Rd8 {[%clk 0:00:19]} 28. h6+ {[%clk 0:00:12]}  Kg8 {[%clk 0:00:18]} 29. Qh5 {[%clk 0:00:10]}  Rxd2 {[%clk 0:00:12]} 30. Qxg5+ {[%clk 0:00:10]} 1-0


[Site "https://www.chess.com"]

[Event "Titled Tuesday Blitz February 21 Late 2023"]
[White "Antonios, Johnny"]
[Black "Fajdetic, Hrvoje"]
[WhiteFideId "5300843"]
[BlackFideId "14501945"]
[WhiteElo "2269"]
[BlackElo "2151"]
[Result "1/2-1/2"]
[Round "02"]
[TimeControl "180+2"]
[Date "2023.02.21"]
[WhiteClock "0:00:54"]
[BlackClock "0:00:42"]

1. e4 {[%clk 0:03:00]}  c5 {[%clk 0:02:58]} 2. Nf3 {[%clk 0:03:01]}  a6 {[%clk 0:02:58]} 3. c3 {[%clk 0:03:01]}  d5 {[%clk 0:02:58]} 4. exd5 {[%clk 0:03:02]}  Qxd5 {[%clk 0:02:58]} 5. d4 {[%clk 0:03:03]}  Bg4 {[%clk 0:02:57]} 6. Be2 {[%clk 0:03:03]}  e6 {[%clk 0:02:55]} 7. O-O {[%clk 0:03:01]}  Nf6 {[%clk 0:02:53]} 8. Be3 {[%clk 0:03:01]}  Nbd7 {[%clk 0:02:53]} 9. h3 {[%clk 0:02:46]}  Bh5 {[%clk 0:02:52]} 10. c4 {[%clk 0:02:31]}  Qd6 {[%clk 0:02:48]} 11. Nc3 {[%clk 0:02:31]}  Be7 {[%clk 0:02:38]} 12. dxc5 {[%clk 0:01:49]}  Nxc5 {[%clk 0:02:36]} 13. b4 {[%clk 0:01:43]}  Qxd1 {[%clk 0:02:30]} 14. Rfxd1 {[%clk 0:01:42]}  Nce4 {[%clk 0:02:24]} 15. Nxe4 {[%clk 0:01:31]}  Nxe4 {[%clk 0:02:25]} 16. Bd2 {[%clk 0:01:31]}  Bf6 {[%clk 0:02:18]} 17. Rac1 {[%clk 0:01:23]}  Nxd2 {[%clk 0:02:15]} 18. Rxd2 {[%clk 0:01:18]}  Bxf3 {[%clk 0:02:06]} 19. Bxf3 {[%clk 0:01:19]}  Bg5 {[%clk 0:02:04]} 20. Bxb7 {[%clk 0:01:19]}  Ra7 {[%clk 0:01:57]} 21. Bc6+ {[%clk 0:01:19]}  Ke7 {[%clk 0:01:57]} 22. Rcd1 {[%clk 0:01:18]}  Bxd2 {[%clk 0:01:56]} 23. Rxd2 {[%clk 0:01:19]}  Rd8 {[%clk 0:01:54]} 24. Rc2 {[%clk 0:01:17]}  Rc8 {[%clk 0:01:39]} 25. b5 {[%clk 0:01:17]}  axb5 {[%clk 0:01:14]} 26. cxb5 {[%clk 0:01:17]}  Ra5 {[%clk 0:01:14]} 27. Rb2 {[%clk 0:01:12]}  Kd6 {[%clk 0:01:11]} 28. Bf3 {[%clk 0:01:08]}  Rc1+ {[%clk 0:01:04]} 29. Kh2 {[%clk 0:01:08]}  Ra1 {[%clk 0:01:05]} 30. b6 {[%clk 0:01:04]}  R1xa2 {[%clk 0:00:57]} 31. Rb1 {[%clk 0:01:03]}  Ra1 {[%clk 0:00:43]} 32. Rb2 {[%clk 0:01:03]}  R1a2 {[%clk 0:00:43]} 33. Rb1 {[%clk 0:01:03]}  Ra1 {[%clk 0:00:43]} 34. Rb2 {[%clk 0:00:54]}  R1a2 {[%clk 0:00:42]} 1/2-1/2


[Site "https://www.chess.com"]

[Event "Titled Tuesday Blitz February 21 Late 2023"]
[White "Guzman Moneo, Alberto"]
[Black "Bon, Michael"]
[WhiteFideId "2209616"]
[BlackFideId "620696"]
[WhiteElo "2170"]
[BlackElo "2394"]
[Result "1-0"]
[Round "02"]
[TimeControl "180+2"]
[Date "2023.02.21"]
[WhiteClock "0:00:49"]
[BlackClock "0:00:06"]

1. e4 {[%clk 0:02:54]}  c5 {[%clk 0:03:00]} 2. Nc3 {[%clk 0:02:53]}  Nc6 {[%clk 0:02:58]} 3. Bb5 {[%clk 0:02:53]}  e6 {[%clk 0:02:57]} 4. Bxc6 {[%clk 0:02:53]}  bxc6 {[%clk 0:02:58]} 5. f4 {[%clk 0:02:53]}  d5 {[%clk 0:02:58]} 6. Nf3 {[%clk 0:02:54]}  Nf6 {[%clk 0:02:59]} 7. d3 {[%clk 0:02:54]}  Be7 {[%clk 0:02:59]} 8. O-O {[%clk 0:02:53]}  Ba6 {[%clk 0:02:59]} 9. Re1 {[%clk 0:02:42]}  O-O {[%clk 0:02:59]} 10. b3 {[%clk 0:02:41]}  c4 {[%clk 0:02:59]} 11. bxc4 {[%clk 0:02:39]}  dxc4 {[%clk 0:02:56]} 12. e5 {[%clk 0:02:37]}  Nd5 {[%clk 0:02:44]} 13. Nxd5 {[%clk 0:02:37]}  Qxd5 {[%clk 0:02:41]} 14. d4 {[%clk 0:02:36]}  c5 {[%clk 0:02:38]} 15. c3 {[%clk 0:02:36]}  cxd4 {[%clk 0:02:38]} 16. Nxd4 {[%clk 0:02:33]}  Bc5 {[%clk 0:02:35]} 17. Be3 {[%clk 0:02:31]}  Rfd8 {[%clk 0:02:30]} 18. Qg4 {[%clk 0:02:30]}  g6 {[%clk 0:01:55]} 19. Rad1 {[%clk 0:02:23]}  Rab8 {[%clk 0:01:45]} 20. Rd2 {[%clk 0:02:14]}  Qe4 {[%clk 0:01:28]} 21. Bf2 {[%clk 0:02:08]}  Rb1 {[%clk 0:01:28]} 22. Rxb1 {[%clk 0:02:01]}  Qxb1+ {[%clk 0:01:28]} 23. Rd1 {[%clk 0:02:00]}  Qxa2 {[%clk 0:01:23]} 24. h4 {[%clk 0:01:59]}  Bb7 {[%clk 0:01:14]} 25. h5 {[%clk 0:01:49]}  Be4 {[%clk 0:01:09]} 26. hxg6 {[%clk 0:01:44]}  hxg6 {[%clk 0:01:08]} 27. Qg5 {[%clk 0:01:43]}  Rb8 {[%clk 0:01:01]} 28. Re1 {[%clk 0:01:38]}  Rb1 {[%clk 0:00:47]} 29. Rxb1 {[%clk 0:01:34]}  Qxb1+ {[%clk 0:00:46]} 30. Kh2 {[%clk 0:01:35]}  Qb7 {[%clk 0:00:35]} 31. Bh4 {[%clk 0:01:01]}  Bf8 {[%clk 0:00:20]} 32. f5 {[%clk 0:00:56]}  exf5 {[%clk 0:00:15]} 33. e6 {[%clk 0:00:56]}  a5 {[%clk 0:00:11]} 34. e7 {[%clk 0:00:54]}  Bxe7 {[%clk 0:00:11]} 35. Qxe7 {[%clk 0:00:54]}  Bxg2 {[%clk 0:00:07]} 36. Qd8+ {[%clk 0:00:49]}  Kh7 {[%clk 0:00:06]} 37. Bf6 {[%clk 0:00:49]} 1-0


[Site "https://www.chess.com"]

[Event "Titled Tuesday Blitz February 21 Late 2023"]
[White "Prieto Aranguren, Alain"]
[Black "Kleiman, Jake"]
[WhiteFideId "2268906"]
[BlackFideId "2020041"]
[WhiteElo "2258"]
[BlackElo "2399"]
[Result "1-0"]
[Round "02"]
[TimeControl "180+2"]
[Date "2023.02.21"]
[WhiteClock "0:00:25"]
[BlackClock "0:01:22"]

1. d4 {[%clk 0:03:00]}  Nf6 {[%clk 0:02:59]} 2. c4 {[%clk 0:03:00]}  c5 {[%clk 0:03:00]} 3. d5 {[%clk 0:02:59]}  b5 {[%clk 0:03:00]} 4. cxb5 {[%clk 0:02:57]}  a6 {[%clk 0:03:01]} 5. b6 {[%clk 0:02:57]}  g6 {[%clk 0:03:01]} 6. Nc3 {[%clk 0:02:56]}  d6 {[%clk 0:03:02]} 7. Qb3 {[%clk 0:02:56]}  Bb7 {[%clk 0:03:01]} 8. a4 {[%clk 0:02:55]}  a5 {[%clk 0:03:00]} 9. e4 {[%clk 0:02:51]}  Nbd7 {[%clk 0:02:59]} 10. Bb5 {[%clk 0:02:49]}  Bg7 {[%clk 0:02:59]} 11. Bc6 {[%clk 0:02:47]}  Qb8 {[%clk 0:02:37]} 12. Qb5 {[%clk 0:02:13]}  Qc8 {[%clk 0:02:34]} 13. Ra3 {[%clk 0:01:50]}  O-O {[%clk 0:02:33]} 14. Rb3 {[%clk 0:01:50]}  Ne5 {[%clk 0:02:26]} 15. Bxb7 {[%clk 0:01:46]}  Qxb7 {[%clk 0:02:27]} 16. f4 {[%clk 0:01:42]}  c4 {[%clk 0:02:21]} 17. fxe5 {[%clk 0:01:34]}  cxb3 {[%clk 0:02:21]} 18. exf6 {[%clk 0:01:33]}  exf6 {[%clk 0:02:18]} 19. Qc6 {[%clk 0:01:29]}  Qe7 {[%clk 0:02:14]} 20. Nf3 {[%clk 0:01:21]}  f5 {[%clk 0:02:12]} 21. Bg5 {[%clk 0:01:15]}  f6 {[%clk 0:02:10]} 22. Bf4 {[%clk 0:01:15]}  fxe4 {[%clk 0:02:10]} 23. Bxd6 {[%clk 0:01:14]}  Qe8 {[%clk 0:01:42]} 24. Nd4 {[%clk 0:01:12]}  f5 {[%clk 0:01:33]} 25. Ne6 {[%clk 0:00:55]}  Qf7 {[%clk 0:01:27]} 26. Nxg7 {[%clk 0:00:35]}  Rae8 {[%clk 0:01:27]} 27. Nxe8 {[%clk 0:00:32]}  Rxe8 {[%clk 0:01:27]} 28. b7 {[%clk 0:00:28]}  f4 {[%clk 0:01:22]} 29. Qxe8+ {[%clk 0:00:25]} 1-0


[Site "https://www.chess.com"]